fUST/lending_fUST_20241105
["ID","MTS","AMOUNT","RATE_DAILY","PERIOD"]
[341303066,1730748454235,-300.0,0.0002804,2]
[341303067,1730748454258,-200.64892445,0.00028041,2]
[341303069,1730748514537,1191.30032366,0.000134,2]
[341303071,1730748548100,-1198.50311793,0.00020377,2]
[341303072,1730748548123,-160.2371526,0.00022,10]
[341303073,1730748548146,-611.65357311,0.00025,2]
[341303074,1730748548177,-246.28641192,0.00025,2]
[341303075,1730748548199,-300.0,0.00025089,2]
[341303076,1730748548224,-300.0,0.00025089,2]
[341303077,1730748548246,-5318.15845652,0.0002509,2]
[341303101,1730748633096,-265.54675533,0.00024658,2]
[341303102,1730748633108,-300.0,0.00025089,2]
[341303103,1730748633118,-300.0,0.00025089,2]
[341303104,1730748633129,-8241.71427687,0.0002509,2]
[341303167,1730748639249,-500.0,0.00025089,2]
[341303168,1730748639260,-500.0,0.00025089,2]
[341303169,1730748639271,-500.0,0.00025089,2]
[341303170,1730748639282,-500.0,0.00025089,2]
[341303171,1730748639294,-500.0,0.00025089,2]
[341303172,1730748639311,-500.0,0.00025089,2]
[341303173,1730748639327,-16.71418326,0.00025089,2]
[341303198,1730748640817,-165.23701472,0.00025089,2]
[341303200,1730748640827,-500.0,0.00025089,2]
[341303202,1730748640837,-500.0,0.00025089,2]
[341303204,1730748640847,-500.0,0.00025089,2]
[341303206,1730748640856,-600.0,0.00025089,2]
[341303208,1730748640866,-500.0,0.00025089,2]
[341303210,1730748640875,-500.0,0.00025089,2]
[341303212,1730748640884,-500.0,0.00025089,2]
[341303214,1730748640894,-500.0,0.00025089,2]
[341303216,1730748640903,-428.4679366,0.00025089,2]
[341303218,1730748640912,-500.0,0.00025089,2]
[341303220,1730748640922,-500.0,0.00025089,2]
[341303222,1730748640931,-500.0,0.00025089,2]
[341303224,1730748640941,-500.0,0.00025089,2]
[341303226,1730748640950,-500.0,0.00025089,2]
[341303228,1730748640959,-500.0,0.00025089,2]
[341303230,1730748640969,-500.0,0.00025089,2]
[341303233,1730748640978,-500.0,0.00025089,2]
[341303235,1730748640991,-500.0,0.00025089,2]
[341303237,1730748641000,-500.0,0.00025089,2]
[341303239,1730748641010,-500.0,0.00025089,2]
[341303241,1730748641020,-500.0,0.00025089,2]
[341303243,1730748641029,-500.0,0.00025089,2]
[341303245,1730748641039,-500.0,0.00025089,2]
[341303247,1730748641049,-525.0,0.00025089,2]
[341303249,1730748641063,-500.0,0.00025089,2]
[341303251,1730748641073,-525.0,0.00025089,2]
[341303253,1730748641082,-500.0,0.00025089,2]
[341303255,1730748641092,-500.0,0.00025089,2]
[341303257,1730748641101,-500.0,0.00025089,2]
[341303259,1730748641111,-500.0,0.00025089,2]
[341303261,1730748641122,-500.0,0.00025089,2]
[341303263,1730748641132,-500.0,0.00025089,2]
[341303265,1730748641141,-500.0,0.00025089,2]
[341303267,1730748641152,-562.61147579,0.00025089,2]
[341303269,1730748641161,-500.0,0.00025089,2]
[341303271,1730748641171,-500.0,0.00025089,2]
[341303273,1730748641181,-500.0,0.00025089,2]
[341303275,1730748641190,-500.0,0.00025089,2]
[341303277,1730748641200,-500.0,0.00025089,2]
[341303279,1730748641210,-500.0,0.00025089,2]
[341303281,1730748641220,-500.0,0.00025089,2]
[341303283,1730748641230,-389.47970748,0.00025089,2]
[341303285,1730748641240,-500.0,0.00025089,2]
[341303287,1730748641251,-341.5,0.00025089,2]
[341303289,1730748641260,-500.0,0.00025089,2]
[341303291,1730748641270,-500.0,0.00025089,2]
[341303293,1730748641280,-500.0,0.00025089,2]
[341303295,1730748641290,-500.0,0.00025089,2]
[341303297,1730748641301,-500.0,0.00025089,2]
[341303299,1730748641316,-500.0,0.00025089,2]
[341303302,1730748641326,-500.0,0.00025089,2]
[341303304,1730748641336,-209.82102337,0.00025089,2]
[341303306,1730748641347,-500.0,0.00025089,2]
[341303308,1730748641359,-500.0,0.00025089,2]
[341303310,1730748641369,-500.0,0.00025089,2]
[341303311,1730748641379,-9638.48433207,0.0002509,2]
[341303312,1730748641444,-9658.2471489,0.0002509,2]
[341303313,1730748641454,-223.5496722,0.00025941,2]
[341303314,1730748641463,-166.666666,0.0002604,2]
[341303315,1730748641474,-420.0,0.00027177,2]
[341303316,1730748641484,-152.0,0.00027557,2]
[341303317,1730748641493,-420.0,0.00027598,2]
[341303318,1730748641503,-1887.04640655,0.00028041,2]
[341303319,1730748641513,-161.3,0.000285,3]
[341303320,1730748641523,-483.93,0.000285,3]
[341303321,1730748641532,-346.95084866,0.00028505,2]
[341303322,1730748641541,-165.06880165,0.00028505,2]
[341303324,1730748641550,-268.50386392,0.00028506,2]
[341303326,1730748641564,-5000.0,0.00028507,2]
[341303328,1730748641573,-2258.96856885,0.00028507,2]
[341303330,1730748641583,-24880.0,0.0002851,2]
[341303332,1730748641592,-163.94237714,0.00028855,2]
[341303392,1730748643742,-1132.52290514,0.00025841,2]
[341303394,1730748643752,-336.05762286,0.00028855,2]
[341303396,1730748643762,-502.84952735,0.00028855,2]
[341303398,1730748643772,-258.6373018,0.00029321,2]
[341303400,1730748643781,-202.93018015,0.00029439,2]
[341303701,1730748646764,-1109.21655457,0.00028312,2]
[341303705,1730748646803,-23.30635055,0.00028312,2]
[341303707,1730748646813,-384.06981985,0.00029439,2]
[341303709,1730748646823,-166.666666,0.0002959,2]
[341303711,1730748646832,-176.02794,0.0002965,2]
[341303713,1730748646841,-322.6,0.0002987,3]
[341303715,1730748646850,-232.0435,0.0003,2]
[341303717,1730748646859,-163.889,0.0003,2]
[341303719,1730748646869,-164.525,0.0003,2]
[341303721,1730748646878,-1811.57,0.00030136,3]
[341303723,1730748646887,-500.0,0.00030136,2]
[341303725,1730748646896,-321.63561392,0.00030137,2]
[341303727,1730748646905,-1000.0,0.00030224,2]
[341303729,1730748646914,-587.0,0.00030358,2]
[341303731,1730748646924,-98.02715049,0.0003041,3]
[341303733,1730748646935,-1713.54284951,0.0003041,3]
[341303735,1730748646945,-500.0,0.0003041,2]
[341303738,1730748646955,-1811.57,0.00030684,3]
[341303739,1730748646964,-500.0,0.00030684,2]
[341303741,1730748646973,-1245.64711349,0.00030958,3]
[341303746,1730748646984,-419.81826451,0.00030958,3]
[341307594,1730748925519,235.696097,0.00013973,2]
[341307596,1730748962975,3914.22400303,0.00020188,2]
[341307598,1730749395276,174.641133,0.00013973,2]
[341307599,1730749638150,-235.696097,0.00020447,2]
[341307600,1730749638171,-191.98488344,0.00025413,2]
[341307601,1730749638192,-821.6059629,0.00025513,2]
[341307602,1730749638214,-294.190326,0.00025585,2]
[341307603,1730749638235,-294.190326,0.00026269,2]
[341307604,1730749638255,-207.870138,0.00026293,2]
[341307605,1730749638276,-157.627262,0.00026394,2]
[341307606,1730749638298,-300.0,0.00026677,2]
[341307607,1730749638319,-300.0,0.00026677,2]
[341307608,1730749638341,-679.51374308,0.00026678,2]
[341307609,1730749638364,-2433.35420066,0.00026678,2]
[341307610,1730749643101,-346.83344438,0.00026678,2]
[341307612,1730749759898,207.870138,0.00024295,2]
[341307651,1730749831823,-353.07,0.00025501,2]
[341307653,1730749831838,-26.93,0.00025501,2]
[341307655,1730749831849,-2987.93203139,0.00025659,2]
[341307657,1730749831858,-300.0,0.000257,2]
[341307659,1730749831867,-300.0,0.000257,2]
[341307661,1730749831876,-500.0,0.00025701,2]
[341307663,1730749831886,-225.0,0.00025701,2]
[341307665,1730749831896,-500.0,0.00025701,2]
[341307667,1730749831906,-160.13796861,0.00025701,2]
[341307670,1730749831918,-339.86203139,0.00025701,2]
[341307672,1730749831927,-500.0,0.00025701,2]
[341307674,1730749831937,-500.0,0.00025701,2]
[341307675,1730749831946,-500.0,0.00025701,2]
[341307677,1730749831956,-500.0,0.00025701,2]
[341307679,1730749831965,-500.0,0.00025701,2]
[341307681,1730749831974,-307.47347545,0.00025701,2]
[341307683,1730749831985,-500.0,0.00025701,2]
[341307685,1730749831994,-500.0,0.00025701,2]
[341307687,1730749832004,-500.0,0.00025701,2]
[341307689,1730749832013,-499.96222103,0.00025701,2]
[341307691,1730749832022,-500.0,0.00025701,2]
[341307693,1730749832031,-500.0,0.00025701,2]
[341307695,1730749832040,-500.0,0.00025701,2]
[341307697,1730749832050,-424.37385127,0.00025701,2]
[341307699,1730749832059,-500.0,0.00025701,2]
[341307701,1730749832068,-513.18222754,0.00025701,2]
[341307703,1730749832077,-500.0,0.00025701,2]
[341307704,1730749832087,-500.0,0.00025701,2]
[341307706,1730749832096,-500.0,0.00025701,2]
[341307709,1730749832105,-270.95795668,0.00025701,2]
[341307711,1730749832114,-500.0,0.00025701,2]
[341307713,1730749832123,-500.0,0.00025701,2]
[341307715,1730749832134,-500.0,0.00025701,2]
[341307717,1730749832143,-500.0,0.00025701,2]
[341307719,1730749832152,-500.0,0.00025701,2]
[341307721,1730749832161,-262.31307328,0.00025701,2]
[341307723,1730749832171,-500.0,0.00025701,2]
[341307725,1730749832180,-500.0,0.00025701,2]
[341307727,1730749832189,-179.00257594,0.00025702,2]
[341307729,1730749832199,-24900.0,0.00025702,2]
[341307731,1730749832208,-258.059342,0.00025759,2]
[341307733,1730749832217,-482.28026567,0.00026514,2]
[341307735,1730749832227,-500.0,0.00026514,2]
[341307736,1730749832236,-500.0,0.00026514,2]
[341307738,1730749832245,-500.0,0.00026514,2]
[341307741,1730749832255,-500.0,0.00026514,2]
[341307742,1730749832264,-500.0,0.00026514,2]
[341307744,1730749832273,-500.69773175,0.00026514,2]
[341307746,1730749832283,-454.27289081,0.00026545,4]
[341307748,1730749832292,-182.69,0.00026752,2]
[341307751,1730749832302,-454.27289081,0.0002681,4]
[341307753,1730749832312,-235.696097,0.00026921,2]
[341307755,1730749832322,-294.190326,0.00026954,2]
[341307756,1730749832331,-159.0,0.00027,2]
[341307758,1730749832341,-454.27289081,0.00027076,4]
[341307760,1730749832351,-346.09209849,0.00027341,4]
[341307762,1730749832360,-420.0,0.00027822,2]
[341307764,1730749832370,-2987.93203134,0.00027979,2]
[341307766,1730749832379,-543.61099448,0.00027992,2]
[341307768,1730749832389,-500.0,0.00028092,5]
[341307770,1730749832398,-550.56065706,0.00028173,5]
[341307772,1730749832408,-500.0,0.00028173,5]
[341307774,1730749832418,-420.0,0.0002827,2]
[341307776,1730749832429,-242.86559406,0.00028299,2]
[341307778,1730749832440,-554.52670423,0.000283,5]
[341307780,1730749832450,-501.4213754,0.000283,5]
[341307782,1730749832459,-502.54176911,0.000283,5]
[341307784,1730749832469,-500.0,0.00028509,5]
[341307786,1730749832479,-197.89959442,0.00028509,5]
[341307788,1730749832488,-366.40794129,0.00028627,5]
[341307790,1730749832499,-543.61099445,0.0002927,2]
[341307792,1730749832509,-988.25635082,0.00029462,5]
[341307794,1730749832518,-150.0,0.00029737,2]
[341307796,1730749832528,-150.0,0.00029873,2]
[341307798,1730749832539,-265.0,0.0003,2]
[341307800,1730749832550,-111997.84384929,0.0003,2]
[341307802,1730749832559,-228.0,0.0003,2]
[341307804,1730749832568,-587.0,0.00030118,2]
[341307806,1730749832579,-500.0,0.00030136,2]
[341307808,1730749832589,-1515.73,0.00030136,3]
[341307810,1730749832598,-500.0,0.00030136,3]
[341307812,1730749832607,-692.0924551,0.00030136,2]
[341308279,1730749838337,-500.0,0.00026514,2]
[341308281,1730749838347,-500.07929953,0.00026514,2]
[341308282,1730749838356,-62.9475449,0.00030136,2]
[341308283,1730749838366,-755.04,0.00030136,2]
[341308284,1730749838376,-755.04,0.00030136,2]
[341308285,1730749838386,-755.04,0.00030136,2]
[341308286,1730749838395,-755.04,0.00030136,2]
[341308288,1730749838404,-755.04,0.00030136,2]
[341308290,1730749838414,-755.04,0.00030136,2]
[341308292,1730749838425,-392.05249322,0.00030136,2]
[341308294,1730749838437,-362.98750678,0.00030136,2]
[341308297,1730749838447,-225.14492975,0.00030137,2]
[341308299,1730749838457,-150.0,0.00030228,2]
[341308301,1730749838467,-2987.93203134,0.00030299,2]
[341308303,1730749838477,-1515.73,0.0003041,3]
[341308305,1730749838488,-304.36,0.0003041,3]
[341308307,1730749838497,-265.0,0.00030411,2]
[341308309,1730749838507,-150.0,0.00030492,2]
[341308311,1730749838516,-543.61099445,0.00030547,2]
[341308313,1730749838526,-1515.73,0.00030684,3]
[341308315,1730749838537,-755.04,0.00030907,2]
[341308317,1730749838549,-982.86300605,0.00030908,30]
[341308319,1730749838559,-500.0,0.00030908,30]
[341308321,1730749838569,-500.0,0.00030908,30]
[341308323,1730749838579,-500.0,0.00030908,30]
[341308325,1730749838590,-500.0,0.00030908,30]
[341308327,1730749838600,-500.0,0.00030908,30]
[341308329,1730749838610,-500.0,0.00030908,30]
[341308331,1730749838620,-500.0,0.00030908,30]
[341308333,1730749838630,-500.0,0.00030908,30]
[341308344,1730749838730,-1515.73,0.00030958,3]
[341308347,1730749838742,-7268.1,0.00031,15]
[341308349,1730749838753,-587.0,0.00031097,2]
[341308351,1730749838763,-1515.73,0.00031232,3]
[341308353,1730749838773,-190.330423,0.00031386,2]
[341308355,1730749838783,-190.330424,0.00031386,2]
[341308357,1730749838792,-1393.89969335,0.00031506,3]
[341308899,1730749844597,-223.68691417,0.000257,2]
[341308901,1730749844606,-36.56598807,0.000257,2]
[341308904,1730749844629,-215.76267378,0.000257,2]
[341308908,1730749844639,-500.0,0.000257,2]
[341308910,1730749844648,-158.26376125,0.000257,2]
[341308912,1730749844658,-306.92367481,0.000257,2]
[341308914,1730749844667,-170.00591584,0.00026574,2]
[341308916,1730749844676,-157.60145082,0.00030137,2]
[341308918,1730749844685,-121.83030665,0.00031506,3]
[341308920,1730749844694,-500.0,0.000316,5]
[341308922,1730749844703,-500.0,0.000316,5]
[341308924,1730749844715,-500.0,0.000316,5]
[341308926,1730749844724,-265.0,0.00031644,2]
[341308928,1730749844736,-1515.73,0.0003178,3]
[341308930,1730749844746,-543.61099445,0.00031825,2]
[341308932,1730749844755,-1515.73,0.00032054,3]
[341308934,1730749844764,-755.04,0.00032327,2]
[341308936,1730749844774,-1274.5012224,0.00032328,3]
[341308973,1730750001391,252.373049,0.00013973,2]
[341308986,1730750763293,10000.0,0.00020188,2]
[341308987,1730750768351,150.0,0.00019,2]
[341308988,1730750768803,150.0,0.00016,2]
[341308989,1730750769263,150.0,0.00014,2]
[341308990,1730750769729,150.0,0.00011,2]
[341308996,1730750801276,10000.0,0.00024,60]
[341308999,1730750827983,10000.0,0.00024,60]
[341309000,1730750834148,-252.373049,0.00020447,2]
[341309001,1730750834174,-103.89805182,0.00022,2]
[341309002,1730750839097,-46.10194818,0.00022,2]
[341309003,1730750839120,-150.0,0.00025,2]
[341309004,1730750839141,-222.922343,0.00025762,2]
[341309005,1730750839162,-123.4594419,0.00026765,2]
[341309006,1730750840584,-2876.5405581,0.00026765,2]
[341309007,1730750840607,-300.0,0.00026859,2]
[341309008,1730750840629,-300.0,0.00026859,2]
[341309009,1730750840651,-500.0,0.0002686,2]
[341309010,1730750840676,-500.0,0.0002686,2]
[341309011,1730750840696,-500.0,0.0002686,2]
[341309012,1730750840716,-291.44923836,0.0002686,2]
[341309013,1730750840737,-184.82484411,0.0002686,2]
[341309014,1730750840757,-155.56204347,0.0002686,2]
[341309015,1730750854367,10000.0,0.00024,60]
[341309016,1730750873134,10000.0,0.00024,60]
[341309018,1730750955341,5441.51,0.00024,60]
[341309020,1730750971110,-300.0,0.00024999,2]
[341309021,1730750971131,-300.0,0.00024999,2]
[341309022,1730750971152,-980.95017519,0.00026821,2]
[341309023,1730750982218,10000.0,0.00024,60]
[341309024,1730751009828,243.686079,0.00013973,2]
[341309053,1730751032039,-243.686079,0.00020447,2]
[341309054,1730751032049,-886.50734445,0.00026821,2]
[341309055,1730751032060,-300.0,0.00026859,2]
[341309056,1730751032069,-300.0,0.00026859,2]
[341309057,1730751032081,-344.43795653,0.0002686,2]
[341309058,1730751032090,-500.0,0.0002686,2]
[341309060,1730751032100,-500.0,0.0002686,2]
[341309062,1730751032110,-500.0,0.0002686,2]
[341309063,1730751032119,-18.68819547,0.0002686,2]
[341309064,1730751032130,-481.31180453,0.0002686,2]
[341309065,1730751032139,-279.62060047,0.0002686,2]
[341309066,1730751032150,-220.37939953,0.0002686,2]
[341309067,1730751032159,-500.0,0.0002686,2]
[341309068,1730751032169,-500.0,0.0002686,2]
[341309069,1730751032179,-500.0,0.0002686,2]
[341309070,1730751032188,-500.0,0.0002686,2]
[341309071,1730751032197,-500.0,0.0002686,2]
[341309072,1730751032206,-529.45830862,0.0002686,2]
[341309073,1730751032217,-2941.41830292,0.0002686,2]
[341309474,1730751046064,-140.63547748,0.0002686,2]
[341309476,1730751046075,-24900.0,0.00026861,2]
[341309478,1730751046086,-243.686079,0.00026921,2]
[341309480,1730751046096,-150.0,0.00028,2]
[341309482,1730751046107,-1867.45751958,0.00028975,2]
[341309484,1730751046117,-420.0,0.00029042,2]
[341309486,1730751046127,-289.0,0.00029545,2]
[341309488,1730751046137,-166.86325,0.0003,2]
[341309490,1730751046148,-286.28696734,0.00030136,7]
[341309492,1730751046158,-500.0,0.00030136,2]
[341309495,1730751046168,-500.0,0.00030136,2]
[341309496,1730751046177,-2707.64,0.00030136,3]
[341309499,1730751046188,-181.20366483,0.00030149,2]
[341309500,1730751046195,-165.97928925,0.00030409,2]
[341309503,1730751046204,-198.30824023,0.00030409,2]
[341309506,1730751046213,-2707.64,0.0003041,3]
[341309508,1730751046220,-176.218036,0.00030588,2]
[341309511,1730751046228,-500.0,0.00030682,2]
[341309513,1730751046235,-2707.64,0.00030684,3]
[341309516,1730751046244,-455.7254825,0.00030685,2]
[341309518,1730751046252,-2707.64,0.00030958,3]
[341309521,1730751046260,-150.0,0.00031,2]
[341309524,1730751046269,-958.04634142,0.00031,2]
[341309527,1730751046278,-1867.45751958,0.00031129,2]
[341309530,1730751046286,-2707.64,0.00031232,3]
[341309533,1730751046294,-587.0,0.00031402,2]
[341309536,1730751046301,-2707.64,0.00031506,3]
[341309537,1730751046309,-2707.64,0.0003178,3]
[341309540,1730751046316,-2707.64,0.00032054,3]
[341309543,1730751046322,-482.15837498,0.00032326,2]
[341309546,1730751046329,-2707.64,0.00032328,3]
[341309547,1730751046336,-156.012,0.0003255,3]
[341309550,1730751046345,-2707.64,0.00032602,3]
[341309553,1730751046353,-181.20366481,0.00032618,2]
[341309556,1730751046361,-856.72,0.0003279,3]
[341309559,1730751046372,-24308.68909905,0.000328,7]
[341309562,1730751046380,-151.0,0.000328,7]
[341309565,1730751046388,-151.0,0.000328,7]
[341309568,1730751046395,-151.0,0.000328,7]
[341309570,1730751046404,-151.0,0.000328,7]
[341309571,1730751046411,-151.0,0.000328,7]
[341309573,1730751046419,-151.0,0.000328,7]
[341309575,1730751046426,-151.0,0.000328,7]
[341309576,1730751046434,-151.0,0.000328,7]
[341309577,1730751046443,-151.0,0.000328,7]
[341309578,1730751046451,-151.0,0.000328,7]
[341309579,1730751046459,-151.0,0.000328,7]
[341309580,1730751046467,-151.0,0.000328,7]
[341309581,1730751046476,-151.0,0.000328,7]
[341309582,1730751046483,-151.0,0.000328,7]
[341309583,1730751046490,-151.0,0.000328,7]
[341309584,1730751046497,-151.0,0.000328,7]
[341309585,1730751046505,-249.338955,0.000328,7]
[341309586,1730751046515,-249.338955,0.000328,7]
[341309587,1730751046525,-151.0,0.000328,7]
[341309588,1730751046535,-500.0,0.00032876,7]
[341309589,1730751046545,-2707.64,0.00032876,3]
[341309590,1730751046559,-167.679171,0.00032877,120]
[341309591,1730751046569,-190.330423,0.00032956,2]
[341309592,1730751046579,-190.330424,0.00032956,2]
[341309593,1730751046589,-150.0,0.00033,2]
[341309594,1730751046600,-150.0,0.000331,14]
[341309595,1730751046609,-500.0,0.000331,41]
[341309596,1730751046619,-500.0,0.00033141,2]
[341309597,1730751046628,-2707.64,0.0003315,3]
[341309598,1730751046638,-1867.45751958,0.00033283,2]
[341309599,1730751046648,-250.0,0.00033306,2]
[341309600,1730751046658,-1143.0,0.00033306,2]
[341309601,1730751046667,-245.867,0.00033306,2]
[341309602,1730751046677,-2395.0,0.00033306,2]
[341309603,1730751046687,-243.686079,0.00033396,2]
[341309604,1730751046696,-154.03,0.000334,31]
[341309605,1730751046706,-500.0,0.00033404,2]
[341309606,1730751046715,-20033.92334439,0.00033405,3]
[341309607,1730751046724,-221.521665,0.00033405,2]
[341309609,1730751046734,-151.0,0.00033405,14]
[341309611,1730751046743,-151.0,0.00033405,14]
[341309613,1730751046752,-192.311654,0.00033405,14]
[341309615,1730751046761,-151.0,0.00033405,14]
[341309617,1730751046771,-151.0,0.00033405,14]
[341309619,1730751046780,-151.0,0.00033405,14]
[341309621,1730751046789,-151.0,0.00033405,14]
[341309623,1730751046799,-151.0,0.00033405,14]
[341309626,1730751046808,-151.0,0.00033405,14]
[341309628,1730751046818,-154.750633,0.00033405,14]
[341309630,1730751046827,-151.0,0.00033405,14]
[341309632,1730751046836,-151.0,0.00033405,14]
[341309634,1730751046845,-151.0,0.00033405,14]
[341309636,1730751046854,-151.0,0.00033405,14]
[341309638,1730751046866,-151.0,0.00033405,14]
[341309640,1730751046875,-151.0,0.00033405,14]
[341309642,1730751046884,-151.0,0.00033405,14]
[341309644,1730751046894,-151.0,0.00033405,14]
[341309646,1730751046903,-151.0,0.00033405,14]
[341309648,1730751046912,-151.0,0.00033405,14]
[341309650,1730751046921,-151.0,0.00033405,14]
[341309652,1730751046930,-151.0,0.00033405,14]
[341309654,1730751046939,-151.0,0.00033405,14]
[341309656,1730751046948,-151.0,0.00033405,14]
[341309658,1730751046958,-151.0,0.00033405,14]
[341309660,1730751046967,-151.0,0.00033405,14]
[341309662,1730751046976,-151.0,0.00033405,14]
[341309664,1730751046986,-151.0,0.00033405,14]
[341309666,1730751046995,-151.0,0.00033405,14]
[341309668,1730751047005,-151.0,0.00033405,14]
[341309670,1730751047017,-151.0,0.00033405,14]
[341309672,1730751047026,-151.0,0.00033405,14]
[341309674,1730751047035,-151.0,0.00033405,14]
[341309676,1730751047044,-151.0,0.00033405,14]
[341309677,1730751047055,-151.0,0.00033405,14]
[341309678,1730751047064,-249.338955,0.00033405,14]
[341309679,1730751047073,-249.338955,0.00033405,14]
[341309680,1730751047083,-151.0,0.00033405,14]
[341309681,1730751047095,-2707.64,0.00033424,3]
[341309682,1730751047105,-9221.26633635,0.00033598,2]
[341309683,1730751047114,-181.27,0.00033661,30]
[341309684,1730751047122,-500.0,0.00033668,2]
[341309685,1730751047131,-151.0,0.00033669,14]
[341309686,1730751047140,-236.681038,0.00033669,14]
[341309687,1730751047149,-151.0,0.00033669,14]
[341309688,1730751047158,-151.0,0.00033669,14]
[341309689,1730751047168,-151.0,0.00033669,14]
[341309690,1730751047177,-151.0,0.00033669,14]
[341309691,1730751047189,-151.0,0.00033669,14]
[341309692,1730751047199,-162.283725,0.00033669,14]
[341309693,1730751047208,-151.0,0.00033669,14]
[341309694,1730751047218,-182.60821,0.00033669,14]
[341309695,1730751047228,-151.0,0.00033669,14]
[341309696,1730751047237,-151.0,0.00033669,14]
[341309697,1730751047247,-151.0,0.00033669,14]
[341309698,1730751047256,-151.0,0.00033669,14]
[341309699,1730751047265,-151.0,0.00033669,14]
[341309700,1730751047275,-151.0,0.00033669,14]
[341309701,1730751047284,-151.0,0.00033669,14]
[341309702,1730751047293,-151.0,0.00033669,14]
[341309703,1730751047303,-151.0,0.00033669,14]
[341309704,1730751047312,-151.0,0.00033669,14]
[341309705,1730751047322,-227.123576,0.00033669,14]
[341309706,1730751047331,-151.0,0.00033669,14]
[341309707,1730751047340,-151.0,0.00033669,14]
[341309708,1730751047350,-151.0,0.00033669,14]
[341309709,1730751047361,-151.0,0.00033669,14]
[341309710,1730751047370,-151.0,0.00033669,14]
[341309711,1730751047379,-151.0,0.00033669,14]
[341309712,1730751047389,-249.338955,0.00033669,14]
[341309713,1730751047399,-249.338955,0.00033669,14]
[341309714,1730751047408,-14654.21950238,0.00033669,10]
[341309715,1730751047417,-151.0,0.00033698,14]
[341309716,1730751047426,-151.0,0.00033698,14]
[341309717,1730751047437,-151.820011,0.00033698,14]
[341309718,1730751047446,-151.0,0.00033698,14]
[341309719,1730751047455,-151.0,0.00033698,14]
[341309720,1730751047465,-151.0,0.00033698,14]
[341309721,1730751047474,-151.0,0.00033698,14]
[341309722,1730751047484,-151.0,0.00033698,14]
[341309723,1730751047493,-151.0,0.00033698,14]
[341309724,1730751047502,-151.0,0.00033698,14]
[341309725,1730751047511,-151.0,0.00033698,14]
[341309726,1730751047521,-193.383431,0.00033698,14]
[341309727,1730751047530,-2707.64,0.00033698,3]
[341309728,1730751047541,-249.338955,0.00033698,14]
[341309729,1730751047550,-249.338955,0.00033698,14]
[341309730,1730751047560,-1417.47,0.000337,2]
[341309731,1730751047570,-420.8716148,0.00033781,2]
[341309732,1730751047579,-153.0,0.00033781,2]
[341309733,1730751047588,-153.0,0.00033781,2]
[341309734,1730751047598,-156.008,0.00033907,120]
[341309735,1730751047608,-823.0,0.00033954,2]
[341309736,1730751047617,-2694.61,0.00033972,120]
[341309737,1730751047626,-2707.64,0.00033972,3]
[341309738,1730751047635,-192.40465576,0.0003398,4]
[341309739,1730751047645,-412.4735354,0.00034082,2]
[341309740,1730751047654,-500.0,0.000341,44]
[341309741,1730751047665,-151.0,0.00034246,14]
[341309742,1730751047674,-151.0,0.00034246,14]
[341309743,1730751047684,-151.0,0.00034246,14]
[341309744,1730751047694,-151.0,0.00034246,14]